[Event "Late-Titled-Tuesday-Blitz-March-19-2024"]
[Site "Chess.com"]
[Date "2024.03.19"]
[Round "3"]
[White "Eduard_Limonov"]
[Black "karinachess1"]
[Result "1/2-1/2"]
[WhiteElo "2857"]
[BlackElo "2624"]
[TimeControl "180+1"]
[EndTime "14:28:59 PDT"]
[Termination "Game drawn by repetition"]

1. d4 {[%clk 0:03:00.9]} 1... Nf6 {[%clk 0:02:59.5]} 2. c4 {[%clk 0:03:00.8]}
2... e6 {[%clk 0:02:59.9]} 3. g3 {[%clk 0:02:59.7]} 3... d5 {[%clk 0:03:00.6]}
4. Nf3 {[%clk 0:02:57.3]} 4... dxc4 {[%clk 0:03:00.9]} 5. Bg2 {[%clk 0:02:57.4]}
5... Nc6 {[%clk 0:03:01.1]} 6. O-O {[%clk 0:02:57.1]} 6... Rb8 {[%clk
0:03:01.2]} 7. e3 {[%clk 0:02:55.3]} 7... b5 {[%clk 0:03:00.8]} 8. b3 {[%clk
0:02:51.9]} 8... cxb3 {[%clk 0:02:59.2]} 9. axb3 {[%clk 0:02:52.8]} 9... a6
{[%clk 0:02:59.6]} 10. Qe2 {[%clk 0:02:39.2]} 10... Be7 {[%clk 0:02:58.5]} 11.
Rd1 {[%clk 0:02:38.7]} 11... O-O {[%clk 0:02:57.2]} 12. e4 {[%clk 0:02:38.8]}
12... Nb4 {[%clk 0:02:52]} 13. Nc3 {[%clk 0:02:38.2]} 13... Bb7 {[%clk
0:02:48.3]} 14. e5 {[%clk 0:02:36.3]} 14... Nfd5 {[%clk 0:02:43.3]} 15. Ne4
{[%clk 0:02:36]} 15... h6 {[%clk 0:02:39.1]} 16. Bd2 {[%clk 0:02:30.7]} 16... c6
{[%clk 0:02:28.6]} 17. h4 {[%clk 0:02:27.1]} 17... a5 {[%clk 0:02:23.6]} 18. h5
{[%clk 0:02:16.1]} 18... Ra8 {[%clk 0:02:23.1]} 19. g4 {[%clk 0:02:14.6]} 19...
a4 {[%clk 0:02:10.3]} 20. bxa4 {[%clk 0:02:15.5]} 20... bxa4 {[%clk 0:02:11.2]}
21. Rdc1 {[%clk 0:01:47.7]} 21... Ba6 {[%clk 0:02:04.9]} 22. Qd1 {[%clk
0:01:47.3]} 22... Bd3 {[%clk 0:01:26.9]} 23. Nc5 {[%clk 0:01:32.2]} 23... Bxc5
{[%clk 0:01:21.1]} 24. dxc5 {[%clk 0:01:32.4]} 24... a3 {[%clk 0:01:08.2]} 25.
g5 {[%clk 0:01:31.4]} 25... hxg5 {[%clk 0:01:03.3]} 26. Nxg5 {[%clk 0:01:19.8]}
26... Bf5 {[%clk 0:00:52.8]} 27. Rc4 {[%clk 0:01:16.5]} 27... Nd3 {[%clk
0:00:34.3]} 28. Rh4 {[%clk 0:01:02.8]} 28... Nxe5 {[%clk 0:00:19.5]} 29. h6
{[%clk 0:01:00.7]} 29... g6 {[%clk 0:00:12.3]} 30. h7+ {[%clk 0:00:59.8]} 30...
Kh8 {[%clk 0:00:12.5]} 31. Qe2 {[%clk 0:00:47.5]} 31... Qf6 {[%clk 0:00:12.6]}
32. Ra2 {[%clk 0:00:35.2]} 32... Nd3 {[%clk 0:00:11.8]} 33. Rh3 {[%clk
0:00:28.5]} 33... N3f4 {[%clk 0:00:07.6]} 34. Qf3 {[%clk 0:00:19.1]} 34... Nxh3+
{[%clk 0:00:07.7]} 35. Nxh3 {[%clk 0:00:18.8]} 35... Rfb8 {[%clk 0:00:05.9]} 36.
Bg5 {[%clk 0:00:15.6]} 36... Qg7 {[%clk 0:00:04.6]} 37. Rxa3 {[%clk 0:00:11.1]}
37... Rxa3 {[%clk 0:00:04.5]} 38. Qxa3 {[%clk 0:00:11.5]} 38... Kxh7 {[%clk
0:00:04.6]} 39. Kh2 {[%clk 0:00:11]} 39... Qe5+ {[%clk 0:00:04.3]} 40. f4 {[%clk
0:00:10.7]} 40... Qe3 {[%clk 0:00:03.7]} 41. Qa7 {[%clk 0:00:10.3]} 41... Rf8
{[%clk 0:00:03.1]} 42. Be7 {[%clk 0:00:08.7]} 42... Be4 {[%clk 0:00:03.3]} 43.
Bxf8 {[%clk 0:00:06.7]} 43... Kg8 {[%clk 0:00:02.9]} 44. Bxe4 {[%clk 0:00:05.6]}
44... Qxe4 {[%clk 0:00:01.8]} 45. Bd6 {[%clk 0:00:06.2]} 45... Qe2+ {[%clk
0:00:02.3]} 46. Kg3 {[%clk 0:00:06.4]} 46... Qe3+ {[%clk 0:00:02.9]} 47. Kg2
{[%clk 0:00:06.9]} 47... Qe2+ {[%clk 0:00:03.3]} 48. Nf2 {[%clk 0:00:07.3]}
48... Ne3+ {[%clk 0:00:03.6]} 49. Kg3 {[%clk 0:00:06]} 49... Nf5+ {[%clk
0:00:03.9]} 50. Kg2 {[%clk 0:00:06]} 50... Ne3+ {[%clk 0:00:04.4]} 51. Kg3
{[%clk 0:00:06.4]} 51... Nf5+ {[%clk 0:00:05]} 52. Kg2 {[%clk 0:00:06.8]} 52...
Ne3+ {[%clk 0:00:05.6]} 1/2-1/2

[Event "Late-Titled-Tuesday-Blitz-March-19-2024"]
[Site "Chess.com"]
[Date "2024.03.19"]
[Round "3"]
[White "tylityli"]
[Black "ArmanGhevondyanchess"]
[Result "0-1"]
[WhiteElo "2316"]
[BlackElo "2602"]
[TimeControl "180+1"]
[EndTime "14:28:59 PDT"]
[Termination "ArmanGhevondyanchess won on time"]

1. d4 {[%clk 0:02:48.6]} 1... Nf6 {[%clk 0:03:00.1]} 2. c4 {[%clk 0:02:47.3]}
2... g6 {[%clk 0:03:00.6]} 3. Nc3 {[%clk 0:02:47.6]} 3... d5 {[%clk 0:03:00.8]}
4. cxd5 {[%clk 0:02:47.7]} 4... Nxd5 {[%clk 0:03:01.7]} 5. Bd2 {[%clk
0:02:48.3]} 5... Bg7 {[%clk 0:02:57]} 6. e4 {[%clk 0:02:46.9]} 6... Nxc3 {[%clk
0:02:55.8]} 7. Bxc3 {[%clk 0:02:45.9]} 7... O-O {[%clk 0:02:56.5]} 8. Qd2 {[%clk
0:02:36.6]} 8... c5 {[%clk 0:02:46.4]} 9. d5 {[%clk 0:02:35.9]} 9... e6 {[%clk
0:02:36.2]} 10. Bc4 {[%clk 0:02:31.9]} 10... exd5 {[%clk 0:02:33.5]} 11. Bxd5
{[%clk 0:02:30.3]} 11... Nc6 {[%clk 0:02:25.8]} 12. Nf3 {[%clk 0:02:27]} 12...
Be6 {[%clk 0:02:19.3]} 13. O-O {[%clk 0:02:22.5]} 13... Bxd5 {[%clk 0:02:16.5]}
14. exd5 {[%clk 0:02:10.7]} 14... Nd4 {[%clk 0:02:15.5]} 15. Nxd4 {[%clk
0:02:02.9]} 15... cxd4 {[%clk 0:02:15.5]} 16. Bxd4 {[%clk 0:02:02.6]} 16... Qxd5
{[%clk 0:02:15.7]} 17. Be3 {[%clk 0:01:59.2]} 17... Qxd2 {[%clk 0:02:08.1]} 18.
Bxd2 {[%clk 0:01:58.7]} 18... Rfd8 {[%clk 0:02:08.5]} 19. Be3 {[%clk 0:01:54.4]}
19... b6 {[%clk 0:02:03.6]} 20. Rab1 {[%clk 0:01:50.9]} 20... Rac8 {[%clk
0:02:02.6]} 21. b4 {[%clk 0:01:41.2]} 21... Bd4 {[%clk 0:01:54.8]} 22. Bf4
{[%clk 0:01:20]} 22... Rc4 {[%clk 0:01:51.2]} 23. Bg3 {[%clk 0:01:17.4]} 23...
Re8 {[%clk 0:01:37.8]} 24. a4 {[%clk 0:01:06.9]} 24... Re2 {[%clk 0:01:30.7]}
25. Rb3 {[%clk 0:00:49.2]} 25... Bc3 {[%clk 0:01:12.7]} 26. Rfb1 {[%clk
0:00:29.2]} 26... Rxb4 {[%clk 0:00:52.1]} 27. f3 {[%clk 0:00:16.7]} 27... Rxb3
{[%clk 0:00:39.9]} 28. Rxb3 {[%clk 0:00:16.3]} 28... Rc2 {[%clk 0:00:36.7]} 29.
h4 {[%clk 0:00:10.9]} 29... h5 {[%clk 0:00:34.7]} 30. Bf2 {[%clk 0:00:09.1]}
30... Be5 {[%clk 0:00:30.9]} 31. g3 {[%clk 0:00:08.2]} 31... Rc1+ {[%clk
0:00:29.6]} 32. Kg2 {[%clk 0:00:08.1]} 32... Rc2 {[%clk 0:00:30.5]} 33. Kf1
{[%clk 0:00:07.4]} 33... Ra2 {[%clk 0:00:26.1]} 34. Rb4 {[%clk 0:00:06.1]} 34...
Ra3 {[%clk 0:00:17.7]} 35. Kg2 {[%clk 0:00:05.2]} 35... Ra2 {[%clk 0:00:17.7]}
36. Kf1 {[%clk 0:00:05.3]} 36... Bd6 {[%clk 0:00:17.5]} 37. Rc4 {[%clk
0:00:04.7]} 37... Bc5 {[%clk 0:00:16.6]} 38. Bxc5 {[%clk 0:00:03.7]} 38... bxc5
{[%clk 0:00:17.5]} 39. Rxc5 {[%clk 0:00:03.8]} 39... Rxa4 {[%clk 0:00:18.1]} 40.
Kf2 {[%clk 0:00:04.3]} 40... Kg7 {[%clk 0:00:18.7]} 41. Ke3 {[%clk 0:00:04.3]}
41... Ra1 {[%clk 0:00:19]} 42. Rc7 {[%clk 0:00:04.2]} 42... a5 {[%clk
0:00:19.5]} 43. Ra7 {[%clk 0:00:03.9]} 43... Ra3+ {[%clk 0:00:20]} 44. Kf4
{[%clk 0:00:04]} 44... Ra1 {[%clk 0:00:20.9]} 45. Ra6 {[%clk 0:00:02.2]} 45...
a4 {[%clk 0:00:21.4]} 46. Ra7 {[%clk 0:00:02.5]} 46... a3 {[%clk 0:00:22]} 47.
Ra6 {[%clk 0:00:02.8]} 47... Kf8 {[%clk 0:00:22.1]} 48. Ra7 {[%clk 0:00:02.9]}
48... Kg7 {[%clk 0:00:21.8]} 49. Ra6 {[%clk 0:00:02.8]} 49... Ra2 {[%clk
0:00:22.4]} 50. Ra7 {[%clk 0:00:02.8]} 50... Kf6 {[%clk 0:00:23]} 51. Ra6+
{[%clk 0:00:02.9]} 51... Ke7 {[%clk 0:00:23.6]} 52. Ra7+ {[%clk 0:00:03.5]}
52... Ke6 {[%clk 0:00:24.2]} 53. Ra6+ {[%clk 0:00:03.9]} 53... Kd5 {[%clk
0:00:24.8]} 54. Ra7 {[%clk 0:00:01.9]} 54... Kc5 {[%clk 0:00:23.7]} 55. Rxf7
{[%clk 0:00:01.4]} 55... Kb5 {[%clk 0:00:22.7]} 0-1

[Event "Late-Titled-Tuesday-Blitz-March-19-2024"]
[Site "Chess.com"]
[Date "2024.03.19"]
[Round "3"]
[White "ChessBrainiacOnTwitch"]
[Black "SultaiC"]
[Result "1-0"]
[WhiteElo "2825"]
[BlackElo "2486"]
[TimeControl "180+1"]
[EndTime "14:29:01 PDT"]
[Termination "ChessBrainiacOnTwitch won by checkmate"]

1. Nf3 {[%clk 0:03:00.9]} 1... Nf6 {[%clk 0:02:58.9]} 2. b3 {[%clk 0:02:57.5]}
2... d6 {[%clk 0:02:57.5]} 3. Bb2 {[%clk 0:02:58.4]} 3... e5 {[%clk 0:02:56.5]}
4. e3 {[%clk 0:02:57.1]} 4... Nc6 {[%clk 0:02:56.4]} 5. c4 {[%clk 0:02:56.3]}
5... Be7 {[%clk 0:02:56.5]} 6. Nc3 {[%clk 0:02:56.5]} 6... O-O {[%clk
0:02:55.6]} 7. d4 {[%clk 0:02:56]} 7... exd4 {[%clk 0:02:54.9]} 8. exd4 {[%clk
0:02:55.8]} 8... d5 {[%clk 0:02:55.5]} 9. Be2 {[%clk 0:02:52.5]} 9... Be6 {[%clk
0:02:54]} 10. O-O {[%clk 0:02:52.1]} 10... h6 {[%clk 0:02:54.4]} 11. Re1 {[%clk
0:02:50.2]} 11... Re8 {[%clk 0:02:54.4]} 12. Rc1 {[%clk 0:02:50]} 12... Bf8
{[%clk 0:02:54.1]} 13. c5 {[%clk 0:02:49.3]} 13... Bf5 {[%clk 0:02:51.7]} 14. a3
{[%clk 0:02:47.5]} 14... Ne4 {[%clk 0:02:51.4]} 15. b4 {[%clk 0:02:47.9]} 15...
Be7 {[%clk 0:02:50.3]} 16. b5 {[%clk 0:02:29.2]} 16... Nb8 {[%clk 0:02:47.2]}
17. Ne5 {[%clk 0:02:24.2]} 17... Bf6 {[%clk 0:02:46.4]} 18. Bf3 {[%clk
0:02:10.1]} 18... Bxe5 {[%clk 0:02:43.3]} 19. dxe5 {[%clk 0:01:59.5]} 19... Nxc3
{[%clk 0:02:42.1]} 20. Bxc3 {[%clk 0:01:56.5]} 20... c6 {[%clk 0:02:41.6]} 21.
a4 {[%clk 0:01:54.2]} 21... Nd7 {[%clk 0:02:38.6]} 22. Qd4 {[%clk 0:01:52]}
22... Re6 {[%clk 0:02:29.4]} 23. g4 {[%clk 0:01:12.9]} 23... Rg6 {[%clk
0:02:24]} 24. Kh1 {[%clk 0:01:06.5]} 24... Be6 {[%clk 0:02:22.9]} 25. Rg1 {[%clk
0:01:01.7]} 25... Nf8 {[%clk 0:02:19.3]} 26. Be2 {[%clk 0:00:59.8]} 26... Qh4
{[%clk 0:02:15.4]} 27. Rg3 {[%clk 0:00:56.2]} 27... Nh7 {[%clk 0:02:12.7]} 28.
Rcg1 {[%clk 0:00:54.9]} 28... Ng5 {[%clk 0:02:01.4]} 29. f3 {[%clk 0:00:43.6]}
29... Nh3 {[%clk 0:01:49.1]} 30. R1g2 {[%clk 0:00:42.6]} 30... Bd7 {[%clk
0:01:10.7]} 31. f4 {[%clk 0:00:37.1]} 31... h5 {[%clk 0:01:01.7]} 32. gxh5
{[%clk 0:00:27.1]} 32... Rxg3 {[%clk 0:00:41.4]} 33. hxg3 {[%clk 0:00:28]} 33...
Nf2+ {[%clk 0:00:35.4]} 34. Kg1 {[%clk 0:00:25.2]} 34... Nh3+ {[%clk 0:00:36.3]}
35. Kf1 {[%clk 0:00:24.2]} 35... Qe7 {[%clk 0:00:35.8]} 36. h6 {[%clk
0:00:21.8]} 36... Bf5 {[%clk 0:00:31.1]} 37. hxg7 {[%clk 0:00:20.6]} 37... Qe6
{[%clk 0:00:30.4]} 38. g4 {[%clk 0:00:20.8]} 38... Be4 {[%clk 0:00:30.4]} 39.
Rh2 {[%clk 0:00:14.6]} 39... Qh6 {[%clk 0:00:30.2]} 40. Qe3 {[%clk 0:00:11.7]}
40... Kxg7 {[%clk 0:00:09.8]} 41. Rxh3 {[%clk 0:00:11]} 41... Qg6 {[%clk
0:00:09.3]} 42. f5 {[%clk 0:00:10]} 42... Bxf5 {[%clk 0:00:09.1]} 43. gxf5
{[%clk 0:00:10.9]} 43... Qxf5+ {[%clk 0:00:09.1]} 44. Rf3 {[%clk 0:00:11.3]}
44... Qb1+ {[%clk 0:00:08]} 45. Kf2 {[%clk 0:00:11.8]} 45... Rg8 {[%clk
0:00:07.7]} 46. e6+ {[%clk 0:00:12.7]} 46... Kf8 {[%clk 0:00:08]} 47. Rg3 {[%clk
0:00:10.5]} 47... Qf5+ {[%clk 0:00:05.9]} 48. Kg1 {[%clk 0:00:06.1]} 48... Rxg3+
{[%clk 0:00:04.4]} 49. Qxg3 {[%clk 0:00:06.2]} 49... Qxe6 {[%clk 0:00:05.2]} 50.
Qb8+ {[%clk 0:00:05.2]} 50... Ke7 {[%clk 0:00:04.2]} 51. Qxb7+ {[%clk
0:00:05.8]} 51... Qd7 {[%clk 0:00:04.6]} 52. bxc6 {[%clk 0:00:05.1]} 52... Qc7
{[%clk 0:00:03.4]} 53. Qxc7+ {[%clk 0:00:05]} 53... Ke6 {[%clk 0:00:04.3]} 54.
Qe5# {[%clk 0:00:04.8]} 1-0

[Event "Late-Titled-Tuesday-Blitz-March-19-2024"]
[Site "Chess.com"]
[Date "2024.03.19"]
[Round "3"]
[White "rodp92"]
[Black "newyorkmouse"]
[Result "1/2-1/2"]
[WhiteElo "2491"]
[BlackElo "2651"]
[TimeControl "180+1"]
[EndTime "14:29:02 PDT"]
[Termination "Game drawn by repetition"]

1. e4 {[%clk 0:03:00.5]} 1... c6 {[%clk 0:02:59.8]} 2. c4 {[%clk 0:02:56.2]}
2... d5 {[%clk 0:02:59.5]} 3. cxd5 {[%clk 0:02:57.1]} 3... cxd5 {[%clk
0:03:00.1]} 4. exd5 {[%clk 0:02:58]} 4... Nf6 {[%clk 0:03:00.7]} 5. Nc3 {[%clk
0:02:58.3]} 5... g6 {[%clk 0:03:00.6]} 6. Nf3 {[%clk 0:02:58.4]} 6... Bg7 {[%clk
0:03:00.9]} 7. d4 {[%clk 0:02:53.4]} 7... O-O {[%clk 0:03:00.3]} 8. Bc4 {[%clk
0:02:53.6]} 8... Nbd7 {[%clk 0:02:59.5]} 9. O-O {[%clk 0:02:50.4]} 9... Nb6
{[%clk 0:02:59.4]} 10. Qb3 {[%clk 0:02:50.6]} 10... Bg4 {[%clk 0:02:57.2]} 11.
Ne5 {[%clk 0:02:48.9]} 11... Rc8 {[%clk 0:02:56.8]} 12. Bd3 {[%clk 0:02:12.3]}
12... Bf5 {[%clk 0:02:21.4]} 13. Bxf5 {[%clk 0:02:11.2]} 13... gxf5 {[%clk
0:02:22.3]} 14. Rd1 {[%clk 0:01:57.4]} 14... Nfxd5 {[%clk 0:02:21.1]} 15. Be3
{[%clk 0:01:44.6]} 15... Nxe3 {[%clk 0:02:07.7]} 16. fxe3 {[%clk 0:01:40.4]}
16... e6 {[%clk 0:02:08.1]} 17. Nf3 {[%clk 0:01:34.8]} 17... Nc4 {[%clk
0:01:49.7]} 18. e4 {[%clk 0:01:20.1]} 18... Ne3 {[%clk 0:01:30.5]} 19. Rd3
{[%clk 0:01:18.8]} 19... fxe4 {[%clk 0:01:29.4]} 20. Nxe4 {[%clk 0:01:12.8]}
20... Nd5 {[%clk 0:01:29.4]} 21. Rf1 {[%clk 0:00:56.9]} 21... b6 {[%clk
0:01:24.4]} 22. Ne5 {[%clk 0:00:48.8]} 22... Qc7 {[%clk 0:01:18]} 23. Rg3 {[%clk
0:00:46]} 23... Kh8 {[%clk 0:01:13.7]} 24. Rxg7 {[%clk 0:00:33.7]} 24... Kxg7
{[%clk 0:01:13.8]} 25. Qg3+ {[%clk 0:00:34.2]} 25... Kh8 {[%clk 0:01:13.5]} 26.
Ng5 {[%clk 0:00:30.5]} 26... f6 {[%clk 0:00:50.3]} 27. Nxe6 {[%clk 0:00:24]}
27... Qe7 {[%clk 0:00:50.5]} 28. Nxf8 {[%clk 0:00:17.8]} 28... fxe5 {[%clk
0:00:47]} 29. Qxe5+ {[%clk 0:00:17.2]} 29... Qxe5 {[%clk 0:00:46.4]} 30. dxe5
{[%clk 0:00:18]} 30... Re8 {[%clk 0:00:39.4]} 31. Nd7 {[%clk 0:00:16.1]} 31...
Re7 {[%clk 0:00:39.3]} 32. Nf6 {[%clk 0:00:09]} 32... Ne3 {[%clk 0:00:30.9]} 33.
Rc1 {[%clk 0:00:06]} 33... Rxe5 {[%clk 0:00:28.7]} 34. h3 {[%clk 0:00:04.7]}
34... Rf5 {[%clk 0:00:20.4]} 35. Ne4 {[%clk 0:00:04.2]} 35... Rf4 {[%clk
0:00:18.3]} 36. Ng5 {[%clk 0:00:04]} 36... Rb4 {[%clk 0:00:17.9]} 37. b3 {[%clk
0:00:03.7]} 37... a5 {[%clk 0:00:17.3]} 38. Rc7 {[%clk 0:00:03.8]} 38... a4
{[%clk 0:00:15.5]} 39. Ne6 {[%clk 0:00:03.3]} 39... h6 {[%clk 0:00:14.1]} 40. h4
{[%clk 0:00:02.5]} 40... axb3 {[%clk 0:00:13.9]} 41. axb3 {[%clk 0:00:03.4]}
41... Rxb3 {[%clk 0:00:13.9]} 42. h5 {[%clk 0:00:04]} 42... Rb2 {[%clk
0:00:12.2]} 43. Rc8+ {[%clk 0:00:04.2]} 43... Kh7 {[%clk 0:00:12.8]} 44. Rc7+
{[%clk 0:00:04.5]} 44... Kg8 {[%clk 0:00:13.3]} 45. Rg7+ {[%clk 0:00:04.7]}
45... Kh8 {[%clk 0:00:13.2]} 46. Rg6 {[%clk 0:00:05.2]} 46... Nf5 {[%clk
0:00:11.2]} 47. Rf6 {[%clk 0:00:04.8]} 47... Rb5 {[%clk 0:00:09.2]} 48. Rf8+
{[%clk 0:00:04.2]} 48... Kh7 {[%clk 0:00:09.3]} 49. Rf7+ {[%clk 0:00:04.6]}
49... Kg8 {[%clk 0:00:09.7]} 50. Rf8+ {[%clk 0:00:04.8]} 50... Kh7 {[%clk
0:00:09.8]} 51. Rf7+ {[%clk 0:00:05.3]} 51... Kh8 {[%clk 0:00:08.7]} 52. Rf8+
{[%clk 0:00:05.7]} 52... Kh7 {[%clk 0:00:08.6]} 1/2-1/2

[Event "Late-Titled-Tuesday-Blitz-March-19-2024"]
[Site "Chess.com"]
[Date "2024.03.19"]
[Round "3"]
[White "HandKnit"]
[Black "ExtremeLearner"]
[Result "1-0"]
[WhiteElo "2483"]
[BlackElo "2547"]
[TimeControl "180+1"]
[EndTime "14:29:02 PDT"]
[Termination "HandKnit won by resignation"]

1. c4 {[%clk 0:03:00.9]} 1... e5 {[%clk 0:02:58.8]} 2. Nc3 {[%clk 0:03:00.5]}
2... Bb4 {[%clk 0:02:59.1]} 3. Nd5 {[%clk 0:02:59.8]} 3... Be7 {[%clk
0:02:59.1]} 4. d4 {[%clk 0:02:59.1]} 4... exd4 {[%clk 0:02:51.5]} 5. Qxd4 {[%clk
0:03:00]} 5... Nf6 {[%clk 0:02:50.2]} 6. Nxe7 {[%clk 0:02:58.6]} 6... Qxe7
{[%clk 0:02:49.4]} 7. Bg5 {[%clk 0:02:57.7]} 7... Nc6 {[%clk 0:02:49.5]} 8. Qc3
{[%clk 0:02:56.6]} 8... Ne5 {[%clk 0:02:22]} 9. e3 {[%clk 0:02:51.8]} 9... h6
{[%clk 0:02:19.4]} 10. Bh4 {[%clk 0:02:40.8]} 10... d6 {[%clk 0:02:18.2]} 11.
Be2 {[%clk 0:02:39.6]} 11... g5 {[%clk 0:02:03.1]} 12. Bg3 {[%clk 0:02:38.2]}
12... Ne4 {[%clk 0:02:03.5]} 13. Qd4 {[%clk 0:02:28.2]} 13... Bf5 {[%clk
0:01:59.7]} 14. Nf3 {[%clk 0:02:22.4]} 14... Nxg3 {[%clk 0:01:48]} 15. hxg3
{[%clk 0:02:23.3]} 15... c5 {[%clk 0:01:37.9]} 16. Qc3 {[%clk 0:02:16.7]} 16...
O-O-O {[%clk 0:01:34.5]} 17. Nxe5 {[%clk 0:01:50.5]} 17... Qxe5 {[%clk
0:01:26.4]} 18. Qxe5 {[%clk 0:01:49.6]} 18... dxe5 {[%clk 0:01:27.3]} 19. g4
{[%clk 0:01:44.2]} 19... Be6 {[%clk 0:01:09]} 20. Rd1 {[%clk 0:01:33.2]} 20...
Rxd1+ {[%clk 0:01:07.9]} 21. Kxd1 {[%clk 0:01:33.8]} 21... e4 {[%clk 0:01:01.1]}
22. Kc2 {[%clk 0:01:31.3]} 22... Kd7 {[%clk 0:01:00.2]} 23. Kc3 {[%clk
0:01:30.9]} 23... Ke7 {[%clk 0:00:57.1]} 24. f4 {[%clk 0:01:17.5]} 24... exf3
{[%clk 0:00:48.9]} 25. gxf3 {[%clk 0:01:18.4]} 25... f5 {[%clk 0:00:39.1]} 26.
a3 {[%clk 0:01:07.9]} 26... Kf6 {[%clk 0:00:31.1]} 27. b4 {[%clk 0:01:05.7]}
27... cxb4+ {[%clk 0:00:24.8]} 28. axb4 {[%clk 0:01:06.6]} 28... Kg6 {[%clk
0:00:16.7]} 29. Rd1 {[%clk 0:01:01.6]} 29... h5 {[%clk 0:00:15.9]} 30. gxh5+
{[%clk 0:01:00.5]} 30... Rxh5 {[%clk 0:00:15.5]} 31. Rd6 {[%clk 0:00:59.6]}
31... Kf7 {[%clk 0:00:13.1]} 32. c5 {[%clk 0:00:54.7]} 32... Rh2 {[%clk
0:00:11.4]} 33. Bc4 {[%clk 0:00:53.5]} 33... Bxc4 {[%clk 0:00:11.2]} 34. Kxc4
{[%clk 0:00:53.9]} 34... Rf2 {[%clk 0:00:05.6]} 35. Rd7+ {[%clk 0:00:52.1]}
35... Ke6 {[%clk 0:00:05.9]} 36. Rxb7 {[%clk 0:00:52.1]} 36... Rxf3 {[%clk
0:00:06.6]} 37. Kd4 {[%clk 0:00:51.8]} 37... Rf1 {[%clk 0:00:06]} 38. Rxa7
{[%clk 0:00:51]} 38... Rd1+ {[%clk 0:00:05.4]} 39. Kc4 {[%clk 0:00:48]} 39...
Rc1+ {[%clk 0:00:05.1]} 40. Kb5 {[%clk 0:00:45.6]} 40... f4 {[%clk 0:00:05.6]}
41. exf4 {[%clk 0:00:44.7]} 41... gxf4 {[%clk 0:00:06.5]} 42. Ra2 {[%clk
0:00:43.9]} 42... f3 {[%clk 0:00:06.3]} 43. Rf2 {[%clk 0:00:43.3]} 43... Rc3
{[%clk 0:00:06.7]} 44. Rf1 {[%clk 0:00:37.4]} 44... Kd5 {[%clk 0:00:05]} 45.
Rd1+ {[%clk 0:00:36.7]} 45... Ke6 {[%clk 0:00:05.1]} 46. Kb6 {[%clk 0:00:34.2]}
46... f2 {[%clk 0:00:03.9]} 47. b5 {[%clk 0:00:28.7]} 47... Rd3 {[%clk
0:00:03.7]} 48. Rf1 {[%clk 0:00:27.3]} 48... Rd2 {[%clk 0:00:04.6]} 49. Kc7
{[%clk 0:00:20.3]} 49... Rc2 {[%clk 0:00:04.7]} 50. c6 {[%clk 0:00:20.3]} 50...
Kd5 {[%clk 0:00:05.2]} 51. Rd1+ {[%clk 0:00:19.1]} 51... Ke4 {[%clk 0:00:05.5]}
52. b6 {[%clk 0:00:18.6]} 52... Re2 {[%clk 0:00:05.9]} 53. Rf1 {[%clk
0:00:18.3]} 53... Kf3 {[%clk 0:00:06.5]} 54. b7 {[%clk 0:00:17.6]} 54... Re7+
{[%clk 0:00:06.5]} 55. Kd6 {[%clk 0:00:17.6]} 55... Re1 {[%clk 0:00:07.4]} 56.
Rxf2+ {[%clk 0:00:17.4]} 56... Kxf2 {[%clk 0:00:08.3]} 57. b8=Q {[%clk
0:00:17.6]} 1-0